bitfinex/quotes_BTCUSD_20250526
["timestamp","ask_amount","ask_price","bid_price","bid_amount"]
[1748300249129,0.36187477,109190.0,109180.0,1.01426193]
[1748300250027,0.36187477,109190.0,109180.0,1.01434193]
[1748300250502,0.30566954,109190.0,109180.0,1.01434193]
[1748300251005,0.30566954,109190.0,109180.0,1.3093996]
[1748300251182,0.30566954,109190.0,109180.0,0.6936396]
[1748300251416,0.30566954,109190.0,109180.0,1.3093996]
[1748300253795,0.30566954,109190.0,109180.0,1.60445727]
[1748300254234,0.30566954,109190.0,109180.0,1.20897727]
[1748300263776,0.30566954,109190.0,109180.0,1.20885727]
[1748300269155,0.30566954,109190.0,109180.0,0.61874193]
[1748300269341,0.30566954,109190.0,109180.0,1.20885727]
[1748300270966,0.30566954,109190.0,109180.0,0.59321727]
[1748300271181,0.64960918,109190.0,109180.0,0.00310193]
[1748300271421,0.93883003,109190.0,109180.0,0.00310193]
[1748300271631,0.93883003,109190.0,109180.0,0.01167317]
[1748300272245,0.93883003,109190.0,109180.0,0.00310193]
[1748300275223,0.9480133,109190.0,109180.0,0.00310193]
[1748300276836,1.01093529,109190.0,109180.0,0.00310193]
[1748300278285,0.3777748,109190.0,109180.0,0.2981596]
[1748300278523,0.3777748,109190.0,109180.0,0.59321727]
[1748300278893,0.3777748,109190.0,109180.0,0.6391596]
[1748300279610,0.3777748,109190.0,109180.0,0.93421727]
[1748300279842,0.27436954,109190.0,109180.0,1.54889727]
[1748300281427,0.27436954,109190.0,109180.0,1.56389727]
[1748300282124,0.27436954,109190.0,109180.0,1.26885435]
[1748300282852,0.27436954,109190.0,109180.0,1.28405435]
[1748300283919,0.27436954,109190.0,109180.0,1.48187408]
[1748300284321,0.27436954,109190.0,109180.0,1.49103318]
[1748300284743,0.27436954,109190.0,109180.0,1.30784953]
[1748300284942,0.30184415,109190.0,109180.0,1.29869035]
[1748300285158,0.30184415,109190.0,109180.0,1.49103309]
[1748300285355,0.30184415,109190.0,109180.0,1.50019194]
[1748300285920,0.28352788,109190.0,109180.0,1.48187408]
[1748300286135,0.28352788,109190.0,109180.0,0.68301035]
[1748300286359,0.28352788,109190.0,109180.0,1.29869035]
[1748300286965,0.28352788,109190.0,109180.0,1.2950056]
[1748300287380,0.28352788,109190.0,109180.0,1.47818933]
[1748300287587,0.28352788,109190.0,109180.0,1.2950056]
[1748300288426,0.28352788,109190.0,109180.0,1.0203256]
[1748300288642,0.28352788,109190.0,109180.0,1.2950056]
[1748300290403,0.28352788,109190.0,109180.0,1.6904856]
[1748300292593,0.28352788,109190.0,109180.0,1.6902056]
[1748300294239,0.28352788,109190.0,109180.0,1.6750056]
[1748300296755,0.28352788,109190.0,109180.0,1.6600056]
[1748300297216,0.28352788,109190.0,109180.0,1.09029318]
[1748300297426,0.31472788,109190.0,109180.0,1.3853256]
[1748300297913,0.31472788,109190.0,109180.0,1.6599656]
[1748300298733,0.31472788,109190.0,109180.0,1.64901435]
[1748300299663,0.31472788,109190.0,109180.0,1.25353435]
[1748300302121,0.28352788,109190.0,109180.0,1.25353435]
[1748300305939,0.28352788,109190.0,109180.0,1.2644856]
[1748300310438,0.31572788,109190.0,109180.0,1.2644856]
[1748300310847,0.31572788,109190.0,109180.0,1.2791216]
[1748300311414,0.29942788,109190.0,109180.0,1.2791216]
[1748300314066,0.29942788,109190.0,109180.0,1.26817035]
[1748300314876,0.29942788,109190.0,109180.0,0.65281035]
[1748300315076,0.29942788,109190.0,109180.0,1.26817035]
[1748300315707,0.31532788,109190.0,109180.0,0.65281035]
[1748300315946,0.31532788,109190.0,109180.0,1.26817035]
[1748300318066,0.31532788,109190.0,109180.0,1.56318983]
[1748300319231,0.29942788,109190.0,109180.0,1.56318983]
[1748300319448,0.31452788,109190.0,109180.0,1.56318983]
[1748300320683,0.28352788,109190.0,109180.0,1.56318983]
[1748300321999,0.28352788,109190.0,109180.0,0.94782983]
[1748300322221,0.31492788,109190.0,109180.0,1.56302983]
[1748300332564,0.31492788,109190.0,109180.0,0.94782983]
[1748300332774,0.31492788,109190.0,109180.0,1.56302983]
[1748300335535,0.29892788,109190.0,109180.0,1.56302983]
[1748300337243,0.29892788,109190.0,109180.0,0.94782983]
[1748300337448,0.31542788,109190.0,109180.0,1.56302983]
[1748300340087,0.31542788,109190.0,109180.0,0.94782983]
[1748300340300,0.31542788,109190.0,109180.0,1.56302983]
[1748300341437,0.31542788,109190.0,109180.0,0.94782983]
[1748300341618,0.31542788,109190.0,109180.0,1.56302983]
[1748300341826,0.31542788,109190.0,109180.0,1.28838983]
[1748300342038,0.31542788,109190.0,109180.0,1.56302983]
[1748300342253,0.31542788,109190.0,109180.0,0.94782983]
[1748300342463,0.31542788,109190.0,109180.0,1.28838983]
[1748300342681,0.31542788,109190.0,109180.0,1.56302983]
[1748300344527,0.31542788,109190.0,109180.0,0.94782983]
[1748300344742,0.31542788,109190.0,109180.0,1.56302983]
[1748300345418,0.31542788,109190.0,109180.0,0.94782983]
[1748300345859,0.31542788,109190.0,109180.0,1.56302983]
[1748300347606,0.31542788,109190.0,109180.0,1.57401324]
[1748300350525,0.31542788,109190.0,109180.0,1.55937724]
[1748300360588,0.31542788,109190.0,109180.0,0.69464534]
[1748300360799,0.36528569,109190.0,109180.0,0.98969129]
[1748300361420,0.31542788,109190.0,109180.0,0.98969129]
[1748300361679,0.31542788,109190.0,109180.0,0.98945129]
[1748300361893,0.31542788,109190.0,109180.0,0.97846788]
[1748300364508,0.31542788,109190.0,109180.0,0.97850788]
[1748300365710,0.31542788,109190.0,109180.0,1.27355383]
[1748300365930,0.28352788,109190.0,109180.0,1.27355383]
[1748300366843,0.28352788,109190.0,109180.0,1.28453724]
[1748300367246,0.28352788,109190.0,109180.0,1.31493724]
[1748300367451,0.28352788,109190.0,109180.0,1.28865383]
[1748300368065,0.28352788,109190.0,109180.0,1.27355383]
[1748300374020,0.28352788,109190.0,109180.0,1.28453724]
[1748300378220,0.28352788,109190.0,109180.0,0.94417724]
[1748300378432,0.31662788,109190.0,109180.0,1.26417129]
[1748300378648,0.35867751,109190.0,109180.0,1.26417129]
[1748300378791,0.35867751,109190.0,109180.0,0.64913129]
[1748300378997,0.35867751,109190.0,109180.0,1.26417129]
[1748300379214,0.31662788,109190.0,109180.0,0.69444534]
[1748300379605,0.31662788,109190.0,109180.0,0.35444534]
[1748300379781,0.31662788,109190.0,109180.0,0.01408534]
[1748300379959,0.31662788,109190.0,109180.0,0.30913129]
[1748300380162,0.40339924,109190.0,109180.0,0.29814788]
[1748300382881,0.40339924,109190.0,109180.0,0.00310193]
[1748300383096,0.41794009,109190.0,109180.0,0.00310193]
[1748300384154,0.33116873,109190.0,109180.0,0.29814788]
[1748300385996,0.33116873,109190.0,109180.0,0.00310193]
[1748300389837,0.31662788,109190.0,109180.0,0.29824362]
[1748300391540,0.28352788,109190.0,109180.0,0.29824362]
[1748300393390,0.28352788,109190.0,109180.0,0.57292362]
[1748300393592,0.28352788,109190.0,109180.0,0.29824362]
[1748300393797,0.31562788,109190.0,109180.0,0.27778193]
[1748300400696,0.31562788,109190.0,109180.0,0.57292362]
[1748300400925,0.28352788,109190.0,109180.0,0.91312362]
[1748300401793,0.31532788,109190.0,109180.0,0.61798193]
[1748300402246,0.35508864,109190.0,109180.0,0.61798193]
[1748300402698,0.35508864,109190.0,109180.0,0.00310193]
[1748300403134,0.35508864,109190.0,109180.0,0.61798193]
[1748300404343,0.36962949,109190.0,109180.0,0.00310193]
[1748300404990,0.36962949,109190.0,109180.0,0.01167803]
[1748300406053,0.66484252,109190.0,109180.0,0.00310193]
[1748300407121,0.72777758,109190.0,109180.0,0.00310193]
[1748300407561,0.43256455,109190.0,109180.0,0.00310193]
[1748300407784,0.72777758,109190.0,109180.0,0.00310193]
[1748300408007,0.43256455,109190.0,109180.0,0.00310193]
[1748300408236,0.72777758,109190.0,109180.0,0.00310193]
[1748300409166,1.00245758,109190.0,109180.0,0.00310193]
[1748300416252,1.00145758,109190.0,109180.0,0.00210193]
[1748300416448,1.00045758,109190.0,109180.0,0.00210193]
[1748300416683,0.70524455,109190.0,109180.0,0.00210193]
[1748300416919,1.00345758,109190.0,109180.0,0.00210193]
[1748300417511,1.03094958,109190.0,109180.0,0.00210193]
[1748300423657,0.53339662,109180.0,109170.0,0.00137496]
[1748300423832,0.71246369,109180.0,109170.0,0.00137496]
[1748300424269,0.71246369,109180.0,109170.0,0.00994231]
[1748300425756,0.71446369,109180.0,109170.0,0.01194231]
[1748300426828,0.71446369,109180.0,109170.0,0.00337496]
[1748300428609,1.00967672,109180.0,109170.0,0.00337496]
[1748300428996,0.77739875,109180.0,109170.0,0.00337496]
[1748300429405,1.07261178,109180.0,109170.0,0.00337496]
[1748300429670,0.77739875,109180.0,109170.0,0.00337496]
[1748300429878,0.48218572,109180.0,109170.0,0.00337496]
[1748300430051,0.77739875,109180.0,109170.0,0.00337496]
[1748300432329,0.48218572,109180.0,109170.0,0.00337496]
[1748300432546,0.34682336,109180.0,109170.0,0.31478799]
[1748300432755,0.34682336,109180.0,109170.0,0.32978799]
[1748300433016,0.34682336,109180.0,109170.0,0.67844135]
[1748300433899,0.34682336,109180.0,109170.0,0.66986799]
[1748300434547,0.399838,109180.0,109170.0,0.66986799]
[1748300435449,0.34682336,109180.0,109170.0,0.66986799]
[1748300436358,0.34682336,109180.0,109170.0,0.37465496]
[1748300436562,0.34682336,109180.0,109170.0,0.66986799]
[1748300437308,0.2838883,109180.0,109170.0,0.66986799]
[1748300437748,0.2838883,109180.0,109170.0,0.94458799]
[1748300438167,0.2838883,109180.0,109170.0,0.64937496]
[1748300438463,0.2838883,109180.0,109170.0,0.94458799]
[1748300444835,0.2838883,109180.0,109170.0,0.64937496]
[1748300445018,0.2838883,109180.0,109170.0,0.94458799]
[1748300448493,0.2838883,109180.0,109170.0,0.32978799]
[1748300448685,0.2838883,109180.0,109170.0,0.94450799]
[1748300449818,0.2838883,109180.0,109170.0,0.64929496]
[1748300450045,0.2838883,109180.0,109170.0,0.94450799]
[1748300454649,0.2838883,109180.0,109170.0,1.57972102]
[1748300455565,0.2838883,109180.0,109170.0,1.59070443]
[1748300456898,0.2838883,109180.0,109170.0,1.2954914]
[1748300457095,0.2838883,109180.0,109170.0,0.6807714]
[1748300457332,0.29997378,109180.0,109170.0,1.2804914]
[1748300457557,0.29997378,109180.0,109170.0,1.2964914]
[1748300457965,0.2838883,109180.0,109170.0,1.2964914]
[1748300458869,0.2838883,109180.0,109170.0,1.28550799]
[1748300460016,0.2838883,109180.0,109170.0,1.28544089]
[1748300460451,0.2838883,109180.0,109170.0,0.95805496]
[1748300460661,0.2838883,109180.0,109170.0,0.68337496]
[1748300460872,0.33246429,109180.0,109170.0,0.95805496]
[1748300461080,0.30046429,109180.0,109170.0,1.25320089]
[1748300461264,0.2838883,109180.0,109170.0,1.25320089]
[1748300461728,0.2838883,109180.0,109170.0,1.28550089]
[1748300471234,0.2838883,109180.0,109170.0,1.2964443]
[1748300472365,0.2838883,109180.0,109170.0,1.00129837]
[1748300472576,0.2838883,109180.0,109170.0,1.2964443]
[1748300472929,0.2838883,109180.0,109170.0,1.0217643]
[1748300473127,0.2838883,109180.0,109170.0,1.2807443]
[1748300475218,0.2838883,109180.0,109170.0,1.2641443]
[1748300479373,0.36425943,109180.0,109170.0,1.2641443]
[1748300480445,0.36425943,109180.0,109170.0,1.25316089]
[1748300480672,0.3144883,109180.0,109170.0,1.25316089]
[1748300482134,0.3144883,109180.0,109170.0,1.25318282]
[1748300482891,0.2990883,109180.0,109170.0,1.25318282]
[1748300483098,0.2838883,109180.0,109170.0,1.25318282]
[1748300488974,0.2838883,109180.0,109170.0,1.26416623]
[1748300490483,0.2997883,109180.0,109170.0,1.26416623]
[1748300492870,0.2838883,109180.0,109170.0,1.26416623]
[1748300494567,0.2838883,109180.0,109170.0,1.59053409]
[1748300494778,0.2838883,109180.0,109170.0,1.29536623]
[1748300495952,0.2838883,109180.0,109170.0,1.59053409]
[1748300496757,0.2838883,109180.0,109170.0,1.57453409]
[1748300496993,0.2838883,109180.0,109170.0,1.27936623]
[1748300497334,0.2838883,109180.0,109170.0,1.26416623]
[1748300499297,0.36756025,109180.0,109170.0,0.96899837]
[1748300499434,0.36756025,109180.0,109170.0,1.26416623]
[1748300500529,0.36756025,109180.0,109170.0,0.01435837]
[1748300501145,0.36756025,109180.0,109170.0,0.02293924]
[1748300501350,0.36756025,109180.0,109170.0,0.01195583]
[1748300502047,0.66272811,109180.0,109170.0,0.01195583]
[1748300502289,0.67726896,109180.0,109170.0,0.01195583]
[1748300502952,0.67726896,109180.0,109170.0,0.00337496]
[1748300503849,1.04532644,109180.0,109170.0,0.00337496]
[1748300504066,0.75035839,109180.0,109170.0,0.00337496]
[1748300505046,0.77785339,109180.0,109170.0,0.00337496]
[1748300505289,0.87780121,109170.0,109160.0,0.002]
[1748300505494,0.87780121,109170.0,109140.0,0.002]
[1748300505495,0.20155689,109150.0,109140.0,0.002]
[1748300505701,0.89205012,109150.0,109140.0,0.002]
[1748300506099,0.90659097,109150.0,109140.0,0.002]
[1748300506303,0.91574605,109150.0,109140.0,0.002]
[1748300506953,0.91624481,109150.0,109140.0,0.002]
[1748300507147,0.91724481,109150.0,109140.0,0.002]
[1748300508519,0.91824481,109150.0,109140.0,0.003]
[1748300508721,1.00776632,109150.0,109140.0,0.003]
[1748300509640,1.30321399,109150.0,109140.0,0.003]
[1748300509847,1.60321399,109150.0,109140.0,0.003]
[1748300510051,1.30321399,109150.0,109140.0,0.003]
[1748300510292,1.29405891,109150.0,109140.0,0.003]
[1748300510509,1.29769124,109150.0,109140.0,0.003]
[1748300510701,1.29669124,109150.0,109140.0,0.002]
[1748300510910,1.29869124,109150.0,109140.0,0.002]
[1748300511131,1.30069124,109150.0,109140.0,0.002]
[1748300511336,1.60069124,109150.0,109140.0,0.002]
[1748300511887,1.59869124,109150.0,109140.0,0.002]
[1748300512087,1.60269124,109150.0,109140.0,0.002]
[1748300513180,1.62269124,109150.0,109140.0,0.002]
[1748300515270,1.68549437,109150.0,109140.0,0.002]
[1748300516258,0.19243087,109130.0,109120.0,0.34696767]
[1748300516464,0.28197643,109130.0,109120.0,0.34696767]
[1748300516676,0.28197643,109130.0,109120.0,0.33166767]
[1748300518040,0.28297643,109130.0,109120.0,0.31636767]
[1748300518906,0.28397643,109130.0,109120.0,0.31636767]
[1748300519420,0.28397643,109130.0,109120.0,0.021]
[1748300519599,0.28397643,109130.0,109120.0,0.31636767]
[1748300521475,0.28397643,109130.0,109120.0,0.33236767]
[1748300522515,0.28397643,109130.0,109120.0,0.60716767]
[1748300522715,0.28397643,109130.0,109120.0,0.67276767]
[1748300522948,0.28397643,109130.0,109120.0,0.3614]
[1748300523155,0.32569445,109130.0,109120.0,0.3614]
[1748300523359,0.32569445,109130.0,109120.0,0.65676767]
[1748300527046,0.28397643,109130.0,109120.0,0.65676767]
[1748300527890,0.31457643,109130.0,109120.0,0.021]
[1748300531597,0.31457643,109130.0,109120.0,0.0295572]
[1748300532237,0.1924485,109120.0,109110.0,0.51773607]
[1748300532432,0.28199406,109120.0,109110.0,0.51773607]
[1748300533457,0.28399406,109120.0,109110.0,0.51873607]
[1748300536815,0.28399406,109120.0,109110.0,0.63636767]
[1748300538998,0.31429406,109120.0,109110.0,0.341]
[1748300539630,0.31429406,109120.0,109110.0,0.63636767]
[1748300539834,0.29899406,109120.0,109110.0,0.63636767]
[1748300540855,0.28399406,109120.0,109110.0,0.63636767]
[1748300541671,0.28399406,109120.0,109110.0,0.66816767]
[1748300542079,0.28399406,109120.0,109110.0,0.61584]
[1748300542080,0.31529406,109120.0,109110.0,0.61584]
[1748300542285,0.31529406,109120.0,109110.0,0.63636767]
[1748300542639,0.36515023,109120.0,109110.0,0.341]
[1748300543557,0.36515023,109120.0,109110.0,0.001]
[1748300543772,0.63999023,109120.0,109110.0,0.001]
[1748300544572,0.7274207,109120.0,109110.0,0.00958055]
[1748300544808,1.02278837,109120.0,109110.0,0.00958055]
[1748300544993,0.7274207,109120.0,109110.0,0.00958055]
[1748300545176,1.02278837,109120.0,109110.0,0.00958055]
[1748300545588,1.02178837,109120.0,109110.0,0.001]
[1748300546030,1.02278837,109120.0,109110.0,0.001]
[1748300546511,0.20166775,109090.0,109080.0,0.7406]
[1748300546670,0.20166775,109090.0,109080.0,1.04453969]
[1748300546671,0.29121331,109090.0,109080.0,1.04453969]
[1748300547714,0.29271176,109090.0,109080.0,1.03596767]
[1748300548198,0.29271176,109090.0,109080.0,0.7406]
[1748300548393,0.29271176,109090.0,109080.0,1.03596767]
[1748300548837,0.3018549,109090.0,109080.0,1.03596767]
[1748300549389,0.3018549,109090.0,109080.0,0.7406]
[1748300549390,0.35360369,109090.0,109080.0,0.7406]
[1748300549594,0.35460369,109090.0,109080.0,1.03596767]
[1748300549859,0.3028549,109090.0,109080.0,1.03596767]
[1748300551208,0.3348549,109090.0,109080.0,1.03596767]
[1748300551836,0.3348549,109090.0,109080.0,0.4006]
[1748300552036,0.63022257,109090.0,109080.0,0.005]
[1748300552249,0.64476342,109090.0,109080.0,0.005]
[1748300552450,0.73428493,109090.0,109080.0,0.005]
[1748300552863,0.74600938,109090.0,109080.0,0.005]
[1748300553099,1.49108938,109090.0,109080.0,0.005]
[1748300553352,1.51870838,109090.0,109080.0,0.005]
[1748300553556,1.54502878,109090.0,109080.0,0.005]
[1748300553751,1.54402878,109090.0,109080.0,0.005]
[1748300554014,1.84802878,109090.0,109080.0,0.005]
[1748300554219,1.87721782,109090.0,109080.0,0.005]
[1748300554941,1.82721782,109090.0,109080.0,0.00127811]
[1748300555847,1.8578693,109090.0,109080.0,0.00127811]
[1748300556087,1.83168026,109090.0,109080.0,0.00127811]
[1748300556307,1.68979835,109090.0,109080.0,0.00127811]
[1748300558136,1.71719875,109090.0,109080.0,0.00127811]
[1748300558935,1.68987835,109090.0,109080.0,0.00127811]
[1748300559314,0.22451907,109080.0,109070.0,0.00014]
[1748300559515,0.69895381,109080.0,109070.0,0.00014]
[1748300560245,0.40358614,109080.0,109070.0,0.00014]
[1748300560445,0.69895381,109080.0,109070.0,0.00014]
[1748300560651,0.69995381,109080.0,109070.0,0.00014]
[1748300561064,0.70195381,109080.0,109070.0,0.00014]
[1748300561468,0.67226463,109080.0,109070.0,0.00014]
[1748300561652,0.96176548,109080.0,109070.0,0.00014]
[1748300562258,0.60656548,109080.0,109070.0,0.00014]
[1748300564667,0.90193315,109080.0,109070.0,0.00014]
[1748300566655,0.28506463,109080.0,109070.0,0.29550767]
[1748300566867,0.28506463,109080.0,109070.0,0.32580767]
[1748300567815,0.36174118,109080.0,109070.0,0.32580767]
[1748300568582,0.36174118,109080.0,109070.0,0.03044]
[1748300568783,0.36174118,109080.0,109070.0,0.32580767]
[1748300569122,0.28506463,109080.0,109070.0,0.32580767]
[1748300570092,0.28506463,109080.0,109070.0,0.3255963]
[1748300572315,0.28506463,109080.0,109070.0,0.6655963]
[1748300572922,0.28506463,109080.0,109070.0,1.0208363]
[1748300576101,0.28506463,109080.0,109070.0,1.31620397]
[1748300576980,0.28506463,109080.0,109070.0,2.68865568]
[1748300576981,0.18635166,109080.0,109070.0,2.68865568]
[1748300577183,0.02133415,109080.0,109070.0,2.72532868]
[1748300577406,0.02850148,109080.0,109070.0,2.72632868]
[1748300577579,0.03766889,109080.0,109070.0,2.72632868]
[1748300577781,0.03766889,109080.0,109070.0,2.74096468]
[1748300577992,0.03766889,109080.0,109070.0,2.74196468]
[1748300578437,0.01833415,109080.0,109070.0,2.74096468]
[1748300578682,0.04583638,109080.0,109070.0,2.74096468]
[1748300578889,0.04683638,109080.0,109070.0,2.74196468]
[1748300579231,0.04783638,109080.0,109070.0,2.74296468]
[1748300580399,0.03866889,109080.0,109070.0,2.74296468]
[1748300580603,0.04783638,109080.0,109070.0,2.74296468]
[1748300582235,0.03866889,109080.0,109070.0,2.74296468]
[1748300584540,0.02950148,109080.0,109070.0,2.73379685]
[1748300584705,0.02950148,109080.0,109070.0,2.74296468]
[1748300584910,0.002,109080.0,109070.0,2.74296468]
[1748300585114,0.00966443,109090.0,109080.0,0.54168639]
[1748300585311,0.20216594,109090.0,109080.0,3.0861658]
[1748300585470,0.20216594,109090.0,109080.0,3.08616589]
[1748300585855,0.19299996,109090.0,109080.0,2.91005258]
[1748300586264,0.19299996,109090.0,109080.0,2.92097477]
[1748300586456,0.19499996,109090.0,109080.0,2.92297477]
[1748300589592,0.19499996,109090.0,109080.0,2.93214226]
[1748300592087,0.18583331,109090.0,109080.0,2.92297477]
[1748300592994,0.18583331,109090.0,109080.0,2.73962311]
[1748300593829,0.18583331,109090.0,109080.0,2.92297477]
[1748300594417,0.18583331,109090.0,109080.0,2.93214226]
[1748300595577,0.18583331,109090.0,109080.0,2.95594567]
[1748300595789,0.18583331,109090.0,109080.0,2.94677826]
[1748300597797,0.18583331,109090.0,109080.0,2.95594567]
[1748300598162,0.18583331,109090.0,109080.0,3.33165607]
[1748300598626,0.18583331,109090.0,109080.0,3.34082348]
[1748300598805,0.19499988,109090.0,109080.0,3.34999072]
[1748300599022,0.00249845,109090.0,109080.0,3.65452555]
[1748300599210,0.01833079,109100.0,109090.0,0.2426209]
[1748300599428,0.28687407,109120.0,109100.0,0.57344942]
[1748300599429,0.18328445,109120.0,109100.0,0.57344942]
[1748300599559,0.29115828,109120.0,109110.0,1.44195726]
[1748300599746,0.29115828,109120.0,109110.0,1.45596645]
[1748300599960,0.30032208,109120.0,109110.0,1.45596645]
[1748300600395,0.0274914,109120.0,109110.0,2.93845431]
[1748300600594,0.20159433,109130.0,109120.0,0.20161264]
[1748300600815,0.00916203,109140.0,109130.0,0.55679399]
[1748300601041,0.22906171,109140.0,109130.0,2.94396529]
[1748300601269,0.21989917,109140.0,109130.0,2.96229433]
[1748300601501,0.21073739,109140.0,109130.0,2.97871511]
[1748300601725,0.20157536,109140.0,109130.0,2.97871511]
[1748300601956,0.18325087,109140.0,109130.0,1.37359905]
[1748300602171,0.18325087,109140.0,109130.0,1.89319605]
[1748300602828,0.18325087,109140.0,109130.0,1.87856005]
[1748300603031,0.18325087,109140.0,109130.0,1.89356005]
[1748300603203,0.18325087,109140.0,109130.0,1.89456005]
[1748300603518,0.18325087,109140.0,109130.0,1.90372343]
[1748300603685,0.18325087,109140.0,109130.0,2.08799092]
[1748300603886,0.18325087,109140.0,109130.0,2.11265405]
[1748300604133,0.18325087,109140.0,109130.0,2.10349092]
[1748300604732,0.20157528,109140.0,109130.0,2.11265388]
[1748300604933,0.19241341,109140.0,109130.0,2.11265405]
[1748300605964,0.19241341,109140.0,109130.0,2.10349109]
[1748300606172,0.19241341,109140.0,109130.0,2.1126543]
[1748300606653,0.19241341,109140.0,109130.0,2.12181726]
[1748300606859,0.19241341,109140.0,109130.0,2.1126543]
[1748300607261,0.00916229,109140.0,109130.0,2.1309803]
[1748300607433,0.2199001,109140.0,109130.0,2.14014309]
[1748300607822,0.02748669,109140.0,109130.0,2.14014309]
[1748300608018,0.03664914,109140.0,109130.0,2.14014309]
[1748300608223,0.21990001,109140.0,109130.0,2.12181743]
[1748300609062,0.21073798,109140.0,109130.0,2.12181743]
[1748300609786,0.20157569,109140.0,109130.0,2.10349109]
[1748300609982,0.20157569,109140.0,109130.0,2.11265438]
[1748300610199,0.20157569,109140.0,109130.0,1.91106005]
[1748300610408,0.20157569,109140.0,109130.0,1.89556005]
[1748300610610,0.20157569,109140.0,109130.0,1.01498471]
[1748300610781,0.23447569,109140.0,109130.0,1.74274605]
[1748300611124,0.20157569,109140.0,109130.0,1.74274605]
[1748300615884,0.20157569,109140.0,109130.0,1.94434021]
[1748300616210,0.20157569,109140.0,109130.0,1.951477]
[1748300617699,0.20157569,109140.0,109130.0,1.75904605]
[1748300617836,0.19241332,109140.0,109130.0,1.75904605]
[1748300618192,0.19241332,109140.0,109130.0,1.94231371]
[1748300618610,0.19241332,109140.0,109130.0,1.951477]
[1748300619353,0.20157552,109140.0,109130.0,1.951477]
[1748300619554,0.21073806,109140.0,109130.0,1.986203]
[1748300619801,0.01832415,109140.0,109130.0,1.99536579]
[1748300620000,0.02748644,109140.0,109130.0,1.99536579]
[1748300620530,0.03664881,109140.0,109130.0,1.99536579]
[1748300623362,0.21989968,109140.0,109130.0,1.97704013]
[1748300623607,0.19241324,109140.0,109130.0,1.15197071]
[1748300623813,0.22441324,109140.0,109130.0,1.74270605]
[1748300624024,0.22441324,109140.0,109130.0,1.11106605]
[1748300624227,0.20861324,109140.0,109130.0,1.74046605]
[1748300624924,0.19241324,109140.0,109130.0,1.74046605]
[1748300625157,0.19241324,109140.0,109130.0,1.93289709]
[1748300625360,0.19241324,109140.0,109130.0,1.95122342]
[1748300625562,0.20157536,109140.0,109130.0,1.99238621]
[1748300625716,0.2107379,109140.0,109130.0,1.97668638]
[1748300626135,0.02748628,109140.0,109130.0,2.00104917]
[1748300626293,0.03664865,109140.0,109130.0,2.00104917]
[1748300626517,0.00916187,109140.0,109130.0,2.00104917]
[1748300626764,0.21701177,109170.0,109160.0,0.34]
[1748300627089,0.19436045,109170.0,109160.0,2.75546949]
[1748300627493,0.19436045,109170.0,109160.0,2.53948434]
[1748300627665,0.19436045,109170.0,109160.0,2.48637534]
[1748300628193,0.19436045,109170.0,109160.0,2.41490834]
[1748300628336,0.19436045,109170.0,109160.0,2.42586028]
[1748300628531,0.19436045,109170.0,109160.0,0.74833761]
[1748300628732,0.31660601,109170.0,109160.0,1.27771961]
[1748300629183,0.31760601,109170.0,109160.0,1.27971961]
[1748300629357,0.22806045,109170.0,109160.0,1.57508728]
[1748300629563,0.19636045,109170.0,109160.0,1.27971961]
[1748300630211,0.21206045,109170.0,109160.0,1.27971961]
[1748300631454,0.21206045,109170.0,109160.0,1.29435561]
[1748300632686,0.19636045,109170.0,109160.0,1.48673368]
[1748300632943,0.01315969,109170.0,109160.0,2.60081332]
[1748300633182,0.04063891,109170.0,109160.0,2.59902165]
[1748300633857,0.02231912,109170.0,109160.0,3.00958165]
[1748300634060,0.03147897,109170.0,109160.0,3.00958165]
[1748300634267,0.004,109170.0,109160.0,3.02558165]
[1748300634524,0.004,109170.0,109160.0,3.05306265]
[1748300634752,0.004,109170.0,109160.0,3.0676035]
[1748300635431,0.01315935,109170.0,109160.0,3.0676035]
[1748300635872,0.01315927,109170.0,109160.0,3.0529675]
[1748300636092,0.004,109170.0,109160.0,3.0529675]
[1748300636316,0.03147822,109170.0,109160.0,3.05288766]
[1748300636555,0.02231862,109170.0,109160.0,3.05288766]
[1748300636990,0.01315927,109170.0,109160.0,3.05288766]
[1748300637195,0.0223187,109170.0,109160.0,3.05288766]
[1748300637411,0.00915859,109180.0,109170.0,0.55067957]
[1748300637615,0.0274762,109180.0,109170.0,3.02902291]
[1748300637860,0.03663521,109180.0,109170.0,3.02902291]
[1748300638080,0.22897804,109180.0,109170.0,2.510646]
[1748300638319,0.20150201,109180.0,109170.0,1.71822685]
[1748300638533,0.20150201,109180.0,109170.0,1.74196902]
[1748300638759,0.20150201,109180.0,109170.0,1.76133806]
[1748300638983,0.20150201,109180.0,109170.0,1.77049808]
[1748300639175,0.19234291,109180.0,109170.0,1.77965793]
[1748300639479,0.19234291,109180.0,109170.0,1.7888177]
[1748300639678,0.20150184,109180.0,109170.0,1.79797739]
[1748300640033,0.20150184,109180.0,109170.0,1.7979773]
[1748300640382,0.20150184,109180.0,109170.0,1.80713682]
[1748300640669,0.20150184,109180.0,109170.0,1.7979773]
[1748300641138,0.20150184,109180.0,109170.0,1.7888177]
[1748300641309,0.20150184,109180.0,109170.0,1.7979773]
[1748300642093,0.20150184,109180.0,109170.0,1.80713682]
[1748300643241,0.19432521,109190.0,109180.0,0.54150168]
[1748300643578,0.21264173,109190.0,109180.0,2.53312603]
[1748300643785,0.22179965,109190.0,109180.0,2.46760703]
[1748300644005,0.0294736,109190.0,109180.0,2.78823329]
[1748300644175,0.03863178,109190.0,109180.0,2.79915689]
[1748300644359,0.23095699,109190.0,109180.0,2.47853063]
[1748300644561,0.22279932,109190.0,109180.0,2.78751773]
[1748300644816,0.03147411,109190.0,109180.0,2.81297632]
[1748300644942,0.03047411,109190.0,109180.0,2.81297632]
[1748300645144,0.02131593,109190.0,109180.0,2.81397632]
[1748300645462,0.02131593,109190.0,109180.0,2.81497632]
[1748300645463,0.003,109190.0,109180.0,2.81497632]
[1748300645663,0.21699901,109210.0,109200.0,0.34]
[1748300645883,0.30654457,109210.0,109200.0,1.95173534]
[1748300647978,0.30654457,109210.0,109200.0,1.95273534]
[1748300650150,0.30654457,109210.0,109200.0,0.73648]
[1748300650428,0.30654457,109210.0,109200.0,1.65732767]
[1748300650659,0.30654457,109210.0,109200.0,1.95269534]
[1748300652992,0.30654457,109210.0,109200.0,1.32721534]
[1748300653183,0.30654457,109210.0,109200.0,1.95265534]
[1748300656170,0.30654457,109210.0,109200.0,1.65728767]
[1748300657281,0.30654457,109210.0,109200.0,1.30644767]
[1748300657475,0.30654457,109210.0,109200.0,1.36192]
[1748300657915,0.30654457,109210.0,109200.0,1.65728767]
[1748300661113,0.30654457,109210.0,109200.0,1.08732]
[1748300661315,0.30654457,109210.0,109200.0,1.38268767]
[1748300662807,0.30654457,109210.0,109200.0,1.08732]
[1748300663007,0.30654457,109210.0,109200.0,1.38268767]
[1748300663594,0.355522,109210.0,109200.0,0.39648]
[1748300663797,0.65088967,109210.0,109200.0,0.001]
[1748300664001,1.01003052,109210.0,109200.0,0.001]
[1748300664333,1.01854131,109210.0,109200.0,0.001]